bitfinex/quotes_ETHUSD_20210701
["timestamp","ask_amount","ask_price","bid_price","bid_amount"]
[1625159489601,0.02784245,2090.8,2090.3,6.98992679]
[1625159489754,0.02784245,2090.8,2090.3,11.99992679]
[1625159489853,0.02784245,2090.8,2090.3,6.98992679]
[1625159489950,0.02784245,2090.8,2090.3,11.99992679]
[1625159490050,0.02784245,2090.8,2090.3,18.17892679]
[1625159491673,0.02784245,2090.8,2090.3,20.35922277]
[1625159491775,0.02784245,2090.8,2090.3,27.52968277]
[1625159491877,0.02784245,2090.8,2090.4,0.23]
[1625159492176,0.02784245,2090.8,2090.5,2.37152679]
[1625159493300,0.01173181,2091.3,2090.5,4.55182277]
[1625159493402,0.01173181,2091.3,2090.5,11.72159277]
[1625159493503,0.01173181,2091.3,2090.6,0.15]
[1625159493804,0.01173181,2091.3,2090.7,2.37152679]
[1625159494051,0.01173181,2091.3,2090.8,0.15]
[1625159494152,0.01173181,2091.3,2090.8,3.3412]
[1625159494349,0.01173181,2091.3,2090.8,8.3512]
[1625159494450,0.01173181,2091.3,2090.8,17.90903]
[1625159494548,0.01173181,2091.3,2090.8,8.3512]
[1625159495146,0.01173181,2091.3,2090.8,3.3412]
[1625159496403,0.01173181,2091.3,2090.8,8.3512]
[1625159496498,0.01173181,2091.3,2090.8,3.3412]
[1625159496649,0.01173181,2091.3,2090.8,8.3512]
[1625159499695,0.01173181,2091.3,2090.8,8.3012]
[1625159499894,0.01173181,2091.3,2090.8,10.67272679]
[1625159500594,0.02422217,2091.3,2090.8,10.67272679]
[1625159501401,0.02422217,2091.3,2090.8,5.66272679]
[1625159501597,0.02422217,2091.3,2090.8,10.67272679]
[1625159501692,0.02422217,2091.3,2090.8,12.85302277]
[1625159501794,0.02422217,2091.3,2090.9,0.14]
[1625159501994,0.02422217,2091.3,2091.0,0.15]
[1625159502095,0.01007568,2091.8,2091.1,29.4]
[1625159502192,0.01007568,2091.8,2091.2,3.4]
[1625159502291,0.01007568,2091.8,2091.2,3.55]
[1625159502392,0.01007568,2091.8,2091.2,8.56]
[1625159502747,0.01007568,2091.8,2091.2,3.55]
[1625159503042,0.01007568,2091.8,2091.2,3.4]
[1625159503146,3.58346871,2092.3,2091.3,19.7]
[1625159503345,3.58346871,2092.3,2091.2,3.4]
[1625159503545,0.08,2092.2,2091.2,3.4]
[1625159503662,3.58509,2091.9,2090.8,0.01173181]
[1625159503760,9.55928,2091.9,2090.8,0.01173181]
[1625159503859,8.0,2091.8,2090.8,0.01173181]
[1625159504011,22.56928,2091.9,2090.8,0.01173181]
[1625159504108,0.04,2091.7,2090.8,0.01173181]
[1625159504261,4.0734,2091.7,2090.8,0.01173181]
[1625159504470,7.65893,2091.7,2090.8,0.01173181]
[1625159504565,12.66893,2091.7,2090.8,0.01173181]
[1625159504715,9.0834,2091.7,2090.8,0.01173181]
[1625159504916,7.17148,2091.3,2090.8,0.01173181]
[1625159505019,3.5854013,2091.9,2090.8,0.01173181]
[1625159505219,8.5954013,2091.9,2090.8,0.01173181]
[1625159505316,3.5854013,2091.9,2090.8,0.01173181]
[1625159505417,8.5954013,2091.9,2090.8,0.01173181]
[1625159505517,3.5854013,2091.9,2090.8,0.01173181]
[1625159505716,3.5854013,2091.9,2090.8,2.3832586]
[1625159505905,3.58478,2092.0,2090.8,2.3832586]
[1625159506160,7.16956,2091.6,2090.8,9.5528086]
[1625159506310,7.16956,2091.6,2090.8,2.3832586]
[1625159506412,7.16956,2091.6,2090.8,7.3932586]
[1625159506512,7.16956,2091.6,2090.8,5.02173181]
[1625159506810,7.16956,2091.6,2090.8,0.01173181]
[1625159508502,7.16956,2091.6,2090.8,7.18138181]
[1625159508757,7.16956,2091.6,2090.8,12.19138181]
[1625159508852,7.16956,2091.6,2090.8,7.18138181]
[1625159508954,7.16956,2091.6,2090.8,12.19138181]
[1625159509058,5.01,2092.0,2090.8,14.4413131]
[1625159509253,15.9041,2092.1,2090.8,21.30252029]
[1625159509356,15.9041,2092.1,2090.9,0.33]
[1625159509455,3.58478,2092.0,2090.9,0.33]
[1625159509555,9.55879,2092.0,2091.1,7.16869]
[1625159509659,9.55879,2092.0,2091.0,0.08]
[1625159509752,9.55879,2092.0,2091.0,2.32993129]
[1625159509954,9.55879,2092.0,2091.1,0.06]
[1625159510106,9.55879,2092.0,2091.2,0.15]
[1625159511512,9.55879,2092.0,2091.3,7.16808]
[1625159511712,9.55879,2092.0,2091.3,12.17808]
[1625159511864,9.56974016,2092.0,2091.3,15.49098]
[1625159512653,0.01095016,2092.0,2091.3,15.49098]
[1625159512754,0.01095016,2092.0,2091.3,16.43574667]
[1625159512854,0.01095016,2092.0,2091.4,0.06]
[1625159513156,0.01095016,2092.0,2091.3,15.49098]
[1625159514305,7.17925016,2092.0,2091.3,8.3229]
[1625159514408,7.17925016,2092.0,2091.3,5.01]
[1625159514558,7.17925016,2092.0,2091.1,7.77249465]
[1625159514660,12.18925016,2092.0,2091.1,2.76249465]
[1625159514917,0.04,2091.9,2091.1,2.76249465]
[1625159515305,0.01095016,2092.0,2091.1,2.76249465]
[1625159515306,5.02095016,2092.0,2091.1,2.76249465]
[1625159515411,0.01095016,2092.0,2091.1,2.24993129]
[1625159515506,5.02095016,2092.0,2091.1,2.24993129]
[1625159515707,0.01095016,2092.0,2091.1,2.24993129]
[1625159516464,7.16967,2091.6,2090.9,14.136]
[1625159516561,7.16967,2091.6,2090.9,10.94856336]
[1625159517611,7.16967,2091.6,2090.9,10.436]
[1625159518311,12.17967,2091.6,2090.9,10.436]
[1625159518413,7.16967,2091.6,2090.9,10.436]
[1625159518511,12.17967,2091.6,2090.9,10.436]
[1625159518912,12.17967,2091.6,2090.8,0.52429517]
[1625159519016,12.17967,2091.6,2090.8,0.01173181]
[1625159519116,20.17967,2091.6,2090.8,0.01173181]
[1625159519216,0.1,2091.5,2090.8,0.01173181]
[1625159519555,0.08,2091.4,2090.8,0.01173181]
[1625159520056,7.17131,2091.2,2090.8,0.01173181]
[1625159520479,4.33882542,2091.2,2090.8,0.01173181]
[1625159521129,9.56174,2091.4,2090.8,0.01173181]
[1625159521332,5.01,2091.6,2091.3,0.01007568]
[1625159521582,7.171312,2091.7,2091.3,0.01007568]
[1625159521583,0.08,2091.5,2091.3,0.01007568]
[1625159522284,16.59552,2091.7,2091.3,0.01007568]
[1625159522415,7.17005,2091.6,2091.3,0.01007568]
[1625159522613,12.18005,2091.6,2091.3,0.01007568]
[1625159523161,0.01085429,2091.4,2091.3,0.01007568]
[1625159528407,0.01085429,2091.4,2091.3,7.17882568]
[1625159528607,0.01085429,2091.4,2091.3,12.28882568]
[1625159528907,0.01085429,2091.4,2091.3,14.84805697]
[1625159529012,0.01085429,2091.4,2091.3,15.79014589]
[1625159530624,0.01085429,2091.4,2091.3,8.62139589]
[1625159530723,0.01085429,2091.4,2091.3,8.52139589]
[1625159531430,0.01085429,2091.4,2091.3,6.1121646]
[1625159531533,0.01085429,2091.4,2091.3,1.1021646]
[1625159531632,0.01085429,2091.4,2091.3,6.1121646]
[1625159531894,0.01085429,2091.4,2091.3,1.1021646]
[1625159531980,0.01085429,2091.4,2091.3,6.1121646]
[1625159532232,4.36875429,2091.4,2091.3,0.01007568]
[1625159532737,4.48875429,2091.4,2091.3,0.01007568]
[1625159532832,9.49875429,2091.4,2091.3,0.01007568]
[1625159533431,17.49875429,2091.4,2091.3,0.01007568]
[1625159533539,9.49875429,2091.4,2091.3,0.01007568]
[1625159533852,17.49875429,2091.4,2091.3,0.01007568]
[1625159534052,16.66912429,2091.4,2091.3,0.01007568]
[1625159535768,11.65912429,2091.4,2091.3,0.01007568]
[1625159535938,11.53912429,2091.4,2091.3,0.01007568]
[1625159537421,11.57912429,2091.4,2091.3,0.01007568]
[1625159537519,16.58912429,2091.4,2091.3,0.01007568]
[1625159537824,24.58912429,2091.4,2091.3,0.01007568]
[1625159537919,27.10342429,2091.4,2091.3,0.01007568]
[1625159538477,27.10342429,2091.4,2090.3,0.0135566]
[1625159538478,29.4,2091.3,2090.3,0.0135566]
[1625159538576,7.1739745,2091.0,2090.3,0.0135566]
[1625159538827,13.9070745,2091.0,2090.3,0.0135566]
[1625159538931,7.17407,2090.7,2090.3,0.0135566]
[1625159539087,15.41407,2090.7,2090.3,0.0135566]
[1625159539428,0.04,2090.6,2090.3,0.0135566]
[1625159540126,8.24,2090.7,2090.3,0.0135566]
[1625159540226,7.17451,2090.5,2090.3,0.0135566]
[1625159540465,8.24,2090.7,2090.3,0.0135566]
[1625159541968,2.2008,2090.8,2090.3,0.0135566]
[1625159542071,9.5653,2090.9,2090.3,0.0135566]
[1625159542571,10.3929,2091.2,2090.3,0.0135566]
[1625159542790,15.4029,2091.2,2090.3,0.0135566]
[1625159543042,7.17268,2091.0,2090.3,0.0135566]
[1625159544793,7.19001888,2091.0,2090.3,0.0135566]
[1625159551054,12.20001888,2091.0,2090.3,0.0135566]
[1625159551152,7.19001888,2091.0,2090.3,0.0135566]
[1625159551253,12.20001888,2091.0,2090.3,0.0135566]
[1625159551455,7.19001888,2091.0,2090.3,0.0135566]
[1625159553375,12.20001888,2091.0,2090.3,0.0135566]
[1625159553571,0.1,2090.9,2090.3,0.0135566]
[1625159554219,0.01733888,2091.0,2090.3,0.0135566]
[1625159554320,5.02733888,2091.0,2090.3,0.0135566]
[1625159554672,7.17409,2090.6,2090.3,0.0135566]
[1625159554773,11.51819,2090.6,2090.3,0.0135566]
[1625159554873,0.16,2090.5,2090.3,0.0135566]
[1625159555421,9.3541,2090.6,2090.3,0.0135566]
[1625159555672,0.01721839,2090.5,2090.3,0.0135566]
[1625159556396,7.17451,2090.4,2090.3,0.0135566]
[1625159556699,4.34102997,2090.4,2090.3,16.2135566]
[1625159556797,4.34102997,2090.4,2090.3,0.0135566]
[1625159558205,0.01721839,2090.5,2090.3,0.0135566]
[1625159562937,0.01721839,2090.5,2090.0,7.1364666]
[1625159563335,0.01721839,2090.5,2090.1,0.06]
[1625159564436,0.01721839,2090.5,2090.2,7.17265]
[1625159565273,0.01721839,2090.5,2090.2,12.18265]
[1625159565376,0.01721839,2090.5,2090.2,16.9032543]
[1625159565475,0.01721839,2090.5,2090.3,0.1]
[1625159565625,0.01721839,2090.5,2090.4,27.8]
[1625159565824,0.01173181,2091.3,2090.4,5.01969597]
[1625159566023,0.01173181,2091.3,2090.5,0.2]
[1625159566124,0.01173181,2091.3,2090.5,4.9223]
[1625159566323,0.01173181,2091.3,2090.6,5.01969597]
[1625159566579,0.01173181,2091.3,2090.9,7.17036]
[1625159566978,0.01173181,2091.3,2091.0,0.04]
[1625159567073,0.01173181,2091.3,2091.0,3.4176]
[1625159567325,0.01173181,2091.3,2091.0,3.3776]
[1625159568980,7.18204181,2091.3,2091.0,3.3776]
[1625159571449,0.01173181,2091.3,2091.0,3.3776]
[1625159571928,7.18204181,2091.3,2091.0,3.3776]
[1625159572486,7.18204181,2091.3,2090.9,2.7]
[1625159572585,7.18204181,2091.3,2090.6,36.59319597]
[1625159572685,7.18204181,2091.3,2090.6,25.62989597]
[1625159572836,12.19204181,2091.3,2090.6,20.7602]
[1625159572937,11.38314181,2091.3,2090.6,20.7602]
[1625159573088,0.1,2091.2,2090.6,20.7602]
[1625159573336,0.12,2091.1,2090.6,20.7602]
[1625159573633,0.12,2091.1,2090.3,0.0135566]
[1625159573837,3.5865842,2091.1,2090.3,0.0135566]
[1625159574034,8.5965842,2091.1,2090.3,0.0135566]
[1625159574201,3.5865842,2091.1,2090.3,0.0135566]
[1625159574288,7.17324,2090.7,2090.3,0.0135566]
[1625159574637,0.06,2090.6,2090.3,0.0135566]
[1625159574986,9.56432,2090.8,2090.3,0.0135566]
[1625159575885,7.17374,2090.5,2090.3,0.0135566]
[1625159576445,11.98764,2090.5,2090.3,0.0135566]
[1625159576693,16.99764,2090.5,2090.3,0.0135566]
[1625159576791,0.16,2090.4,2090.3,0.0135566]
[1625159576996,7.3347,2090.4,2090.3,0.0135566]
[1625159577146,7.1747,2090.4,2090.3,0.0135566]
[1625159586789,0.0147588,2090.5,2090.3,0.0135566]
[1625159587893,7.1880288,2090.5,2090.3,0.0135566]
[1625159590537,0.0147588,2090.5,2090.3,0.0135566]
[1625159593041,7.1880888,2090.5,2090.3,0.0135566]
[1625159593242,0.0147588,2090.5,2090.3,0.0135566]
[1625159593696,9.56378,2090.9,2090.4,14.15]
[1625159593793,9.56378,2090.9,2090.3,0.0135566]
[1625159593892,9.56378,2090.9,2090.5,0.14]
[1625159593993,9.56378,2090.9,2090.3,0.0135566]
[1625159594194,7.17327,2090.6,2090.3,0.0135566]
[1625159599387,7.18594476,2090.6,2090.3,0.0135566]
[1625159603698,0.01267476,2090.6,2090.3,0.0135566]
[1625159604293,7.18594476,2090.6,2090.3,0.0135566]
[1625159607740,0.01267476,2090.6,2090.3,0.0135566]
[1625159608811,7.18594476,2090.6,2090.3,0.0135566]
[1625159612803,11.70754476,2090.6,2090.3,0.0135566]
[1625159621496,11.70754476,2090.6,2089.3,1.4275948]
[1625159621497,29.4,2090.4,2089.3,1.4275948]
[1625159621571,44.4,2090.3,2089.1,12.25600962]
[1625159621669,0.07098067,2090.2,2089.1,12.25600962]
[1625159621770,0.23122224,2090.2,2089.1,2.2559272]
[1625159621922,0.01769316,2089.8,2089.2,1.41238417]
[1625159622023,7.17844,2089.5,2089.2,1.41238417]
[1625159622219,12.18844,2089.5,2089.2,1.41238417]
[1625159622320,12.18844,2089.5,2089.2,8.417e-05]
[1625159622472,29.4,2089.4,2088.8,3.40970564]
[1625159622626,29.4,2089.4,2088.3,0.02239951]
[1625159622627,44.42525795,2089.3,2088.3,2.28289624]
[1625159622721,47.7865,2089.3,2088.3,2.28289624]
[1625159622826,47.7865,2089.3,2088.1,3.3907451]
[1625159622827,29.59057691,2089.2,2088.1,3.3907451]
[1625159622978,4.1,2088.7,2087.8,0.04712769]
[1625159623076,15.02642319,2088.6,2087.8,0.04712769]
[1625159623222,0.0343428,2088.5,2087.8,0.04712769]
[1625159623373,3.591549,2088.4,2087.8,0.04712769]
[1625159623526,7.18332,2088.3,2087.8,0.04712769]
[1625159623701,8.92592,2088.3,2087.8,0.04712769]
[1625159623805,13.93592,2088.3,2087.8,0.04712769]
[1625159624055,15.0,2088.2,2087.8,0.04712769]
[1625159624204,26.27677,2088.2,2087.3,0.02750742]
[1625159624306,3.5926847,2087.9,2087.3,0.02750742]
[1625159624406,27.8,2087.4,2087.3,0.02750742]
[1625159624508,23.1759,2087.4,2087.3,0.02750742]
[1625159624604,13.1859,2087.4,2087.3,0.02750742]
[1625159624805,28.1859,2087.4,2087.3,0.02750742]
[1625159625106,36.1859,2087.4,2087.3,7.42e-06]
[1625159625202,39.16987809,2087.4,2087.3,7.42e-06]
[1625159625306,46.35686809,2087.4,2087.3,7.42e-06]
[1625159625401,46.30686809,2087.4,2087.3,7.42e-06]
[1625159625604,31.30686809,2087.4,2087.3,7.42e-06]
[1625159625758,20.37289,2087.4,2087.3,7.42e-06]
[1625159626070,15.36289,2087.4,2087.3,7.42e-06]
[1625159626318,20.37289,2087.4,2087.3,7.42e-06]
[1625159626623,12.16289,2087.4,2087.3,7.42e-06]
[1625159626725,10.4497,2087.9,2087.3,7.42e-06]
[1625159626875,10.4497,2087.9,2087.3,4.29250742]
[1625159626971,0.02491707,2088.3,2087.3,4.29250742]
[1625159628222,7.18273,2088.1,2087.3,4.29250742]
[1625159629130,15.0,2088.0,2087.3,7.42e-06]
[1625159629374,0.04724402,2087.9,2086.8,0.0301368]
[1625159629579,0.15,2087.8,2086.8,0.0301368]
[1625159629727,3.59421,2087.3,2086.3,0.02811884]
[1625159629880,3.1,2086.7,2086.3,0.02811884]
[1625159630030,12.1899,2086.7,2086.3,0.02811884]
[1625159630225,12.1899,2086.7,2085.8,0.03535694]
[1625159630226,7.18887,2086.5,2085.8,0.03535694]
[1625159630327,25.0928309,2086.4,2085.8,0.03535694]
[1625159630456,6.4981,2086.5,2085.8,0.03535694]
[1625159630649,3.65988805,2086.5,2085.8,0.03535694]
[1625159630801,4.61328805,2086.5,2085.8,0.03535694]
[1625159630901,0.9534,2086.5,2085.8,0.03535694]
[1625159631850,0.9534,2086.5,2084.9,10.15904225]
[1625159631956,7.19038,2085.9,2084.9,10.15904225]
[1625159632103,11.51468,2085.9,2084.9,7.65904225]
[1625159632204,0.03786208,2085.8,2084.9,7.65904225]
[1625159632301,0.03786208,2085.8,2084.8,0.04023722]
[1625159632607,0.06410018,2085.8,2084.8,0.04023722]
[1625159632723,0.03786208,2085.8,2084.8,0.04023722]
[1625159633022,0.05940961,2085.8,2084.8,0.04023722]
[1625159633124,7.25029961,2085.8,2084.8,0.04023722]
[1625159633221,7.22875208,2085.8,2084.8,0.04023722]
[1625159633574,12.23875208,2085.8,2084.8,0.04023722]
[1625159633675,12.23875208,2085.8,2084.8,3.722e-05]
[1625159633778,2.4,2085.4,2084.8,3.722e-05]
[1625159633975,6.7213,2085.4,2084.8,3.722e-05]
[1625159634178,4.3213,2085.4,2084.8,3.722e-05]
[1625159634428,4.3213,2085.4,2084.9,2.3339347]
[1625159634959,1.3931,2085.5,2085.0,0.04]
[1625159635107,0.03786208,2085.8,2085.0,0.04]
[1625159635303,0.03786208,2085.8,2084.9,20.3448347]
[1625159635553,0.03786208,2085.8,2085.0,2.3339347]
[1625159635656,0.03786208,2085.8,2085.1,0.15]
[1625159636857,0.03786208,2085.8,2085.1,1.11675953]
[1625159637189,0.03786208,2085.8,2085.1,1.06675953]
[1625159637794,0.03786208,2085.8,2085.1,0.1]
[1625159638294,0.03786208,2085.8,2084.8,3.722e-05]
[1625159638393,0.03786208,2085.8,2084.8,0.15003722]
[1625159639455,0.03786208,2085.8,2084.8,2.63788859]
[1625159639543,0.03786208,2085.8,2084.8,7.64788859]
[1625159639860,5.8672707,2086.2,2084.9,29.35]
[1625159640008,5.8672707,2086.2,2084.9,39.2001]
[1625159640112,5.8672707,2086.2,2085.0,1.14883661]
[1625159640209,5.8672707,2086.2,2085.0,0.19766156]
[1625159640359,0.03535694,2086.3,2085.1,0.12]
[1625159640459,7.22515694,2086.3,2085.2,0.01289297]
[1625159640609,7.22515694,2086.3,2085.1,7.76785137]
[1625159640762,0.03535694,2086.3,2085.3,0.03786208]
[1625159640864,0.01368065,2086.1,2085.3,0.03786208]
[1625159641212,0.01368065,2086.1,2085.4,0.15]
[1625159641311,6.5e-07,2086.1,2085.4,4.5995]
[1625159641516,6.5e-07,2086.1,2085.4,9.6095]
[1625159641727,6.5e-07,2086.1,2085.5,2.48785137]
[1625159641809,6.5e-07,2086.1,2085.7,3.46]
[1625159641961,6.5e-07,2086.1,2085.8,0.15]
[1625159642062,6.5e-07,2086.1,2085.8,4.8625853]
[1625159642166,5.759e-05,2086.3,2085.8,4.8625853]
[1625159642263,5.759e-05,2086.3,2085.8,9.8725853]
[1625159642364,5.759e-05,2086.3,2085.9,0.2]
[1625159642463,5.759e-05,2086.3,2085.9,3.3715]
[1625159642561,5.759e-05,2086.3,2086.0,0.15]
[1625159642662,5.759e-05,2086.3,2086.0,0.19]
[1625159643012,5.759e-05,2086.3,2086.1,0.06]
[1625159643167,5.759e-05,2086.3,2086.2,0.15]
[1625159643266,5.759e-05,2086.3,2085.5,9.58121]
[1625159643417,3.27125759,2086.3,2085.2,0.01880091]
[1625159643516,3.27125759,2086.3,2084.6,1.76496812]
[1625159643517,15.0,2086.2,2084.6,1.76496812]
[1625159643618,44.5,2086.2,2084.3,0.04243701]
[1625159643718,7.19203,2085.5,2084.3,0.04243701]
[1625159644014,0.15,2085.4,2084.3,0.04243701]
[1625159644418,3.46,2085.2,2084.3,0.04243701]
[1625159644566,8.47,2085.2,2084.3,0.04243701]
[1625159644668,0.15,2085.1,2084.3,0.04243701]
[1625159644810,9.59364,2085.0,2084.3,0.04243701]
[1625159644909,14.16194,2085.0,2084.3,0.04243701]
[1625159645011,29.5,2084.9,2084.3,0.04243701]
[1625159645308,5.16,2084.9,2084.3,0.04243701]
[1625159645412,0.15,2084.9,2084.3,0.04243701]
[1625159645510,5.16,2084.9,2084.3,0.04243701]
[1625159645661,0.15,2084.9,2084.3,0.04243701]
[1625159645763,5.16,2084.9,2084.3,0.04243701]
[1625159646217,29.35,2084.8,2084.3,7.423e-05]
[1625159646426,0.15,2084.7,2084.3,7.423e-05]
[1625159646720,0.15,2084.7,2083.3,0.0628603]
[1625159646814,29.44454855,2084.6,2083.3,0.0628603]
[1625159647067,0.04441754,2084.3,2083.3,0.0628603]
[1625159647166,3.11541754,2084.3,2083.3,0.0628603]
[1625159647418,0.15,2084.2,2083.3,0.0628603]
[1625159648069,0.15,2084.2,2083.3,2.489952]
[1625159648172,12.25100754,2084.3,2083.3,2.489952]
[1625159648269,7.24100754,2084.3,2083.3,2.489952]
[1625159648499,0.04441754,2084.3,2083.4,0.1]
[1625159648692,0.04441754,2084.3,2083.5,0.15]
[1625159648791,0.04441754,2084.3,2083.5,4.80182563]
[1625159648893,0.04441754,2084.3,2083.6,0.08]
[1625159649046,0.04441754,2084.3,2083.5,4.80182563]
[1625159649241,0.04441754,2084.3,2083.5,9.81182563]
[1625159649343,0.04441754,2084.3,2083.3,0.2128603]
[1625159649441,0.04441754,2084.3,2083.3,0.0628603]
[1625159649690,0.04441754,2084.3,2083.3,2.489952]
[1625159649790,0.04441754,2084.3,2083.3,2.639952]
[1625159650190,7.24141754,2084.3,2083.3,2.639952]
[1625159650395,7.24141754,2084.3,2083.3,7.649952]
[1625159650493,0.04441754,2084.3,2083.3,15.649952]
[1625159650596,0.04441754,2084.3,2083.4,4.3468]
[1625159650824,0.04441754,2084.3,2083.4,9.3568]
[1625159650927,0.04441754,2084.3,2083.5,2.4270917]
[1625159651872,0.04441754,2084.3,2083.5,2.3770917]
[1625159652222,0.05875599,2084.3,2083.5,2.3770917]
[1625159652877,7.19665,2084.2,2083.5,2.3770917]
[1625159653219,7.19665,2084.2,2083.6,0.04]
[1625159653373,7.19665,2084.2,2083.5,2.3770917]
[1625159653573,0.05875599,2084.3,2083.5,2.3770917]
[1625159654429,0.05875599,2084.3,2083.6,0.15]
[1625159655382,0.05875599,2084.3,2083.5,7.3870917]
[1625159655482,0.05875599,2084.3,2083.5,2.3770917]
[1625159657290,0.05875599,2084.3,2083.6,0.15]
[1625159657470,0.05875599,2084.3,2083.6,4.6839]
[1625159657572,0.05875599,2084.3,2083.6,9.6939]
[1625159657672,0.05875599,2084.3,2083.6,17.6939]
[1625159658274,0.05875599,2084.3,2083.7,0.06]
[1625159658827,1.599e-05,2084.3,2083.8,0.15]
[1625159658978,0.04243701,2084.8,2083.9,0.16]
[1625159659227,0.04243701,2084.8,2084.0,0.15]
[1625159659328,0.04243701,2084.8,2084.2,7.19245]
[1625159659478,0.04243701,2084.8,2084.2,10.97655]
[1625159659574,0.04243701,2084.8,2084.3,0.15]
[1625159660030,0.04023722,2085.3,2084.3,0.15]
[1625159660130,0.04023722,2085.3,2084.5,3.46]
[1625159660230,0.04023722,2085.3,2084.5,3.52850378]
[1625159660331,0.04023722,2085.3,2084.8,3.46]
[1625159660530,0.04023722,2085.3,2084.9,0.15]
[1625159663160,12.2289993,2085.8,2085.0,29.35]
[1625159663357,0.01288342,2085.3,2085.0,29.35]
[1625159663462,0.01288342,2085.3,2085.1,0.15]
[1625159663659,0.01288342,2085.3,2085.2,29.49]
[1625159663758,0.01288342,2085.3,2085.2,0.14]
[1625159664216,0.01288342,2085.3,2085.1,0.15]
[1625159664771,0.01288342,2085.3,2084.9,2.6279]
[1625159664871,0.01288342,2085.3,2084.8,0.19023722]
[1625159665270,0.01288342,2085.3,2084.8,0.04023722]
[1625159666498,7.20563342,2085.3,2084.8,0.04023722]
[1625159666989,0.01288342,2085.3,2084.8,0.04023722]
[1625159669034,7.20593342,2085.3,2084.8,0.04023722]
[1625159669233,12.21593342,2085.3,2084.8,0.04023722]
[1625159669531,7.20593342,2085.3,2084.8,0.04023722]
[1625159670132,0.01288342,2085.3,2084.8,0.04023722]
[1625159670234,0.01288342,2085.3,2084.8,4.61193722]
[1625159670330,0.01288342,2085.3,2084.9,0.06]
[1625159670995,0.01288342,2085.3,2084.8,4.61193722]
[1625159671644,0.01288342,2085.3,2084.8,9.62193722]
[1625159671747,0.01288342,2085.3,2084.9,0.15]
[1625159671943,0.01288342,2085.3,2085.0,0.16]
[1625159672141,0.01288342,2085.3,2085.1,0.15]
[1625159675070,0.01288342,2085.3,2085.2,26.16]
[1625159675498,0.01288342,2085.3,2085.2,0.06]
[1625159676290,0.01288342,2085.3,2085.1,0.15]
[1625159678323,0.0280993,2085.8,2085.1,0.15]
[1625159679471,0.0280993,2085.8,2085.1,7.33981]
[1625159679673,0.0280993,2085.8,2085.2,0.06]
[1625159680629,0.0280993,2085.8,2085.1,0.15]
[1625159680791,0.0280993,2085.8,2084.8,0.04023722]
[1625159681174,0.15,2085.7,2084.8,0.04023722]
[1625159681684,7.19323,2085.3,2084.8,0.04023722]
[1625159681830,0.15,2085.2,2084.8,0.04023722]
[1625159682981,7.19418,2085.0,2084.8,0.04023722]
[1625159684628,14.75098,2085.4,2084.8,0.04023722]
[1625159684987,5.16,2085.4,2084.8,0.04023722]
[1625159685236,0.01434598,2084.9,2084.8,0.04023722]
[1625159689485,0.01434598,2084.9,2084.8,0.19023722]
[1625159689486,5.98e-06,2084.9,2084.8,0.19023722]
[1625159689736,5.98e-06,2084.9,2084.8,5.28809579]
[1625159689938,5.98e-06,2084.9,2084.8,10.29809579]
[1625159690041,0.0280993,2085.8,2084.8,18.49809579]
[1625159690193,0.0280993,2085.8,2085.0,9.26676]
[1625159690385,0.0280993,2085.8,2085.1,0.15]
[1625159690487,0.0280993,2085.8,2085.2,7.18997]
[1625159690587,0.0280993,2085.8,2085.0,23.86339]
[1625159690736,0.0280993,2085.8,2085.3,0.15]
[1625159691724,7.2184793,2085.8,2085.3,0.15]
[1625159692073,7.2184793,2085.8,2085.4,0.08]
[1625159692277,7.2184793,2085.8,2085.5,0.15]
[1625159692375,7.2184793,2085.8,2085.5,3.6518]
[1625159694237,7.2184793,2085.8,2085.0,13.38056]
[1625159694335,7.2184793,2085.8,2085.0,18.39056]
[1625159694435,7.2184793,2085.8,2085.1,0.19]
[1625159695931,7.23106982,2085.8,2085.1,0.19]
[1625159696283,7.23106982,2085.8,2085.1,0.14]
[1625159696486,7.23106982,2085.8,2085.1,0.1]
[1625159698330,7.23106982,2085.8,2085.1,7.2899]
[1625159699735,0.04068982,2085.8,2085.1,7.2899]
[1625159700047,0.04068982,2085.8,2085.2,14.4541676]
[1625159700136,0.04068982,2085.8,2085.3,2.5787122]
[1625159700239,0.04068982,2085.8,2085.4,0.15]
[1625159700392,0.04068982,2085.8,2085.5,0.06]
[1625159700637,0.04068982,2085.8,2085.6,0.15]
[1625159701539,0.04068982,2085.8,2085.6,7.33837]
[1625159701739,0.04068982,2085.8,2085.6,12.34837]
[1625159701841,0.04068982,2085.8,2085.7,16.87]
[1625159701991,0.04068982,2085.8,2085.7,17.02]
[1625159702188,0.04068982,2085.8,2085.7,0.27]
[1625159703182,0.04068982,2085.8,2085.7,0.12]
[1625159703287,0.04068982,2085.8,2085.5,3.6442]
[1625159703780,0.04068982,2085.8,2085.5,3.4942]
[1625159705177,0.04068982,2085.8,2085.6,0.19]
[1625159706079,5.759e-05,2086.3,2085.7,29.35]
[1625159706276,5.759e-05,2086.3,2085.8,7.18754]
[1625159706725,5.759e-05,2086.3,2085.9,0.04]
[1625159707179,5.759e-05,2086.3,2085.7,1.0223]
[1625159708329,5.759e-05,2086.3,2085.8,7.18755]
[1625159708534,5.759e-05,2086.3,2085.9,0.31]
[1625159708979,0.01112093,2086.3,2085.9,0.31]
[1625159709948,1.093e-05,2086.3,2086.0,7.18632]
[1625159710047,1.093e-05,2086.3,2086.0,17.20332]
[1625159710145,1.093e-05,2086.3,2086.1,0.15]
[1625159710248,0.03276716,2086.8,2086.1,0.35]
[1625159710398,0.03276716,2086.8,2086.2,0.2]
[1625159710543,0.03276716,2086.8,2086.3,0.15]
[1625159710742,0.03276716,2086.8,2086.3,1.10747994]
[1625159710846,47.66570396,2087.7,2086.4,29.35]
[1625159710947,7.18513,2087.1,2086.5,0.11845943]
[1625159711099,7.18513,2087.1,2086.5,5.1407]
[1625159711293,7.18513,2087.1,2086.5,10.1507]
[1625159711636,9.5796,2087.5,2086.5,10.1507]
[1625159711732,9.5796,2087.5,2086.6,0.2]
[1625159711932,9.5796,2087.5,2086.7,0.15]
[1625159712033,7.18415,2087.3,2086.7,0.15]
[1625159712387,10.4193,2087.7,2086.8,0.1]
[1625159712492,0.02750742,2087.8,2086.8,0.1]
[1625159712585,0.02750742,2087.8,2086.9,0.15]
[1625159712688,0.02750742,2087.8,2086.9,4.1092172]
[1625159712883,0.02750742,2087.8,2086.9,17.1192172]
[1625159713136,0.02750742,2087.8,2087.0,4.8976]